[Event "Early-Titled-Tuesday-Blitz-August-29-2023"]
[Site "Chess.com"]
[Date "2023.08.29"]
[Round "6"]
[White "BrandonJacobson"]
[Black "Jospem"]
[Result "1-0"]
[WhiteElo "3018"]
[BlackElo "3054"]
[TimeControl "180+1"]
[EndTime "9:06:55 PDT"]
[Termination "BrandonJacobson won by resignation"]

1. Nf3 {[%clk 0:03:00.9]} 1... c5 {[%clk 0:02:59.3]} 2. c4 {[%clk 0:03:00.5]}
2... Nc6 {[%clk 0:02:59.6]} 3. Nc3 {[%clk 0:03:01]} 3... g6 {[%clk 0:03:00.1]}
4. e3 {[%clk 0:03:01.4]} 4... Bg7 {[%clk 0:03:00.2]} 5. d4 {[%clk 0:03:02]} 5...
d6 {[%clk 0:03:01.1]} 6. Be2 {[%clk 0:03:01.6]} 6... e6 {[%clk 0:03:01.3]} 7.
O-O {[%clk 0:02:57.7]} 7... Nge7 {[%clk 0:02:57.5]} 8. d5 {[%clk 0:02:51.6]}
8... exd5 {[%clk 0:02:56.8]} 9. cxd5 {[%clk 0:02:51.5]} 9... Na5 {[%clk
0:02:41.7]} 10. Bd2 {[%clk 0:02:40.1]} 10... O-O {[%clk 0:02:40.1]} 11. a3
{[%clk 0:02:40.2]} 11... c4 {[%clk 0:02:35.1]} 12. Nd4 {[%clk 0:02:25]} 12...
Nf5 {[%clk 0:02:31.5]} 13. Ncb5 {[%clk 0:02:06.6]} 13... Nxd4 {[%clk 0:02:18.7]}
14. Nxd4 {[%clk 0:02:06.3]} 14... Bd7 {[%clk 0:02:18.3]} 15. Bxa5 {[%clk
0:02:01.4]} 15... Qxa5 {[%clk 0:02:17.9]} 16. Bxc4 {[%clk 0:02:02.3]} 16... Rac8
{[%clk 0:02:15.5]} 17. Rc1 {[%clk 0:02:01.6]} 17... Qb6 {[%clk 0:02:14.6]} 18.
Qd2 {[%clk 0:01:57]} 18... Bxd4 {[%clk 0:02:10.8]} 19. Qxd4 {[%clk 0:01:53.8]}
19... Qxd4 {[%clk 0:02:09]} 20. exd4 {[%clk 0:01:54.7]} 20... Rfe8 {[%clk
0:02:09.1]} 21. f3 {[%clk 0:01:50.9]} 21... Kg7 {[%clk 0:01:54.5]} 22. Kf2
{[%clk 0:01:51]} 22... Kf6 {[%clk 0:01:54.6]} 23. Rc3 {[%clk 0:01:49.4]} 23...
g5 {[%clk 0:01:51.3]} 24. Rfc1 {[%clk 0:01:44.1]} 24... h6 {[%clk 0:01:48.2]}
25. Bd3 {[%clk 0:01:40.2]} 25... Rxc3 {[%clk 0:01:31.4]} 26. bxc3 {[%clk
0:01:28.8]} 26... b5 {[%clk 0:01:27.4]} 27. Rb1 {[%clk 0:01:15.1]} 27... Rc8
{[%clk 0:01:07.2]} 28. Bxb5 {[%clk 0:01:10.8]} 28... Bxb5 {[%clk 0:01:07.1]} 29.
Rxb5 {[%clk 0:01:11.7]} 29... Rxc3 {[%clk 0:01:07.3]} 30. Ra5 {[%clk 0:01:12.4]}
30... Rc7 {[%clk 0:00:49.2]} 31. Ra6 {[%clk 0:01:12.5]} 31... Ke7 {[%clk
0:00:49.7]} 32. Kg3 {[%clk 0:00:52]} 32... f5 {[%clk 0:00:41.1]} 33. Rc6 {[%clk
0:00:47.4]} 33... Rb7 {[%clk 0:00:39.6]} 34. Rc8 {[%clk 0:00:47.1]} 34... a5
{[%clk 0:00:34]} 35. Rh8 {[%clk 0:00:43.6]} 35... Rb5 {[%clk 0:00:34]} 36. Rh7+
{[%clk 0:00:43.2]} 36... Kf8 {[%clk 0:00:32.3]} 37. Rxh6 {[%clk 0:00:41.3]}
37... Rxd5 {[%clk 0:00:32.8]} 38. Rg6 {[%clk 0:00:38.5]} 38... f4+ {[%clk
0:00:33]} 39. Kg4 {[%clk 0:00:39]} 39... Rxd4 {[%clk 0:00:33.7]} 40. Rxg5 {[%clk
0:00:38.4]} 40... Ra4 {[%clk 0:00:23.9]} 41. Rf5+ {[%clk 0:00:38.2]} 41... Ke7
{[%clk 0:00:24.5]} 42. h4 {[%clk 0:00:29.4]} 42... Rxa3 {[%clk 0:00:23.7]} 43.
h5 {[%clk 0:00:29.3]} 43... Ra1 {[%clk 0:00:22.2]} 44. Kxf4 {[%clk 0:00:27.4]}
44... a4 {[%clk 0:00:13.9]} 45. h6 {[%clk 0:00:27.4]} 45... Rh1 {[%clk
0:00:11.9]} 46. Kg5 {[%clk 0:00:27.9]} 46... Rh2 {[%clk 0:00:08.3]} 47. g4
{[%clk 0:00:23.4]} 47... a3 {[%clk 0:00:08.6]} 48. Ra5 {[%clk 0:00:23.5]} 48...
a2 {[%clk 0:00:09.4]} 49. Kg6 {[%clk 0:00:23.5]} 49... d5 {[%clk 0:00:10]} 50.
h7 {[%clk 0:00:23.9]} 50... d4 {[%clk 0:00:10.4]} 51. Rxa2 {[%clk 0:00:23.8]}
51... Rxa2 {[%clk 0:00:09.1]} 52. h8=Q {[%clk 0:00:24]} 52... Ra6+ {[%clk
0:00:10]} 53. Kf5 {[%clk 0:00:23.9]} 53... Rd6 {[%clk 0:00:10.9]} 54. Qg7+
{[%clk 0:00:22.9]} 54... Kd8 {[%clk 0:00:11.2]} 55. Qf8+ {[%clk 0:00:20.7]}
55... Kd7 {[%clk 0:00:11.8]} 56. Qxd6+ {[%clk 0:00:20.8]} 56... Kxd6 {[%clk
0:00:12.7]} 57. Ke4 {[%clk 0:00:21.5]} 57... d3 {[%clk 0:00:13.6]} 58. Kxd3
{[%clk 0:00:21.9]} 58... Ke5 {[%clk 0:00:14.5]} 59. Ke3 {[%clk 0:00:22.7]} 59...
Kf6 {[%clk 0:00:15.3]} 60. f4 {[%clk 0:00:23.4]} 60... Kg7 {[%clk 0:00:16.2]}
61. Ke4 {[%clk 0:00:24]} 61... Kf8 {[%clk 0:00:17.1]} 62. Kf5 {[%clk 0:00:24.6]}
62... Kg8 {[%clk 0:00:18]} 63. Kg6 {[%clk 0:00:25.2]} 63... Kf8 {[%clk
0:00:18.9]} 64. f5 {[%clk 0:00:26]} 64... Kg8 {[%clk 0:00:19.8]} 65. f6 {[%clk
0:00:26.8]} 65... Kf8 {[%clk 0:00:20.7]} 66. f7 {[%clk 0:00:27.5]} 66... Ke7
{[%clk 0:00:21]} 67. Kg7 {[%clk 0:00:28.4]} 67... Ke6 {[%clk 0:00:21.9]} 68.
f8=Q {[%clk 0:00:29.2]} 68... Ke5 {[%clk 0:00:22.8]} 69. Qf5+ {[%clk 0:00:29.7]}
1-0

[Event "Early-Titled-Tuesday-Blitz-August-29-2023"]
[Site "Chess.com"]
[Date "2023.08.29"]
[Round "6"]
[White "ArtemDyachuk"]
[Black "fireheart92"]
[Result "1-0"]
[WhiteElo "2600"]
[BlackElo "2936"]
[TimeControl "180+1"]
[EndTime "9:06:56 PDT"]
[Termination "ArtemDyachuk won on time"]

1. e4 {[%clk 0:03:00.9]} 1... e5 {[%clk 0:02:21.4]} 2. Nf3 {[%clk 0:02:59.8]}
2... Nc6 {[%clk 0:02:21.7]} 3. Bc4 {[%clk 0:02:59.5]} 3... Nf6 {[%clk
0:02:21.3]} 4. d3 {[%clk 0:02:58.6]} 4... Bc5 {[%clk 0:02:21.5]} 5. c3 {[%clk
0:02:57.1]} 5... d6 {[%clk 0:02:21.7]} 6. O-O {[%clk 0:02:56.7]} 6... a6 {[%clk
0:02:22]} 7. Bb3 {[%clk 0:02:54.9]} 7... Ba7 {[%clk 0:02:22.2]} 8. h3 {[%clk
0:02:53.4]} 8... h6 {[%clk 0:02:22.1]} 9. Re1 {[%clk 0:02:51.3]} 9... g5 {[%clk
0:02:21.5]} 10. Nh2 {[%clk 0:02:45.1]} 10... g4 {[%clk 0:02:16.9]} 11. hxg4
{[%clk 0:02:40.6]} 11... Rg8 {[%clk 0:02:17.1]} 12. Be3 {[%clk 0:02:24.9]} 12...
Nxg4 {[%clk 0:02:03.5]} 13. Bxa7 {[%clk 0:02:04.3]} 13... Rxa7 {[%clk
0:01:41.6]} 14. Qf3 {[%clk 0:02:03.1]} 14... Qe7 {[%clk 0:01:41.6]} 15. Nf1
{[%clk 0:01:55.6]} 15... Be6 {[%clk 0:01:38.6]} 16. Ng3 {[%clk 0:01:54.8]} 16...
Ra8 {[%clk 0:01:35.8]} 17. Nd2 {[%clk 0:01:54.1]} 17... Qh4 {[%clk 0:01:33.8]}
18. Ndf1 {[%clk 0:01:24.8]} 18... Ne7 {[%clk 0:01:28.8]} 19. Ne3 {[%clk
0:01:21.9]} 19... h5 {[%clk 0:01:23.2]} 20. Nef5 {[%clk 0:01:16.3]} 20... Bxf5
{[%clk 0:01:21.3]} 21. exf5 {[%clk 0:01:15.9]} 21... c6 {[%clk 0:00:47.9]} 22.
d4 {[%clk 0:01:04.8]} 22... Rd8 {[%clk 0:00:47]} 23. f6 {[%clk 0:00:29.5]} 23...
Ng6 {[%clk 0:00:42.5]} 24. Qf5 {[%clk 0:00:25.1]} 24... Qxf6 {[%clk 0:00:31.4]}
25. Qxf6 {[%clk 0:00:14]} 25... Nxf6 {[%clk 0:00:32.3]} 26. Bc2 {[%clk
0:00:13.1]} 26... Nf4 {[%clk 0:00:16.3]} 27. dxe5 {[%clk 0:00:11.6]} 27... dxe5
{[%clk 0:00:17.2]} 28. Rxe5+ {[%clk 0:00:11.9]} 28... Kf8 {[%clk 0:00:17.7]} 29.
Rf5 {[%clk 0:00:12.3]} 29... N4d5 {[%clk 0:00:09.8]} 30. c4 {[%clk 0:00:11.5]}
30... Nb4 {[%clk 0:00:08.6]} 31. Bb3 {[%clk 0:00:10.5]} 31... h4 {[%clk
0:00:08.3]} 32. Nf1 {[%clk 0:00:08.6]} 32... Ne4 {[%clk 0:00:07.8]} 33. c5
{[%clk 0:00:08.1]} 33... Rg7 {[%clk 0:00:07]} 34. Re1 {[%clk 0:00:07.5]} 34...
Ng5 {[%clk 0:00:04.1]} 35. Ree5 {[%clk 0:00:04]} 35... Nh7 {[%clk 0:00:02.2]}
36. Ne3 {[%clk 0:00:03.2]} 36... Nd3 {[%clk 0:00:02.4]} 37. Re4 {[%clk
0:00:02.8]} 37... Nc1 {[%clk 0:00:02.5]} 38. Rxh4 {[%clk 0:00:02.6]} 38... Ne2+
{[%clk 0:00:01.4]} 39. Kh2 {[%clk 0:00:02.1]} 39... Nd4 {[%clk 0:00:02.3]} 40.
Rfh5 {[%clk 0:00:02.1]} 40... Nf6 {[%clk 0:00:01]} 41. Rh8+ {[%clk 0:00:01.3]}
1-0

[Event "Early-Titled-Tuesday-Blitz-August-29-2023"]
[Site "Chess.com"]
[Date "2023.08.29"]
[Round "6"]
[White "BillieKimbah"]
[Black "ShiroglanTalibov"]
[Result "1-0"]
[WhiteElo "3035"]
[BlackElo "2815"]
[TimeControl "180+1"]
[EndTime "9:06:57 PDT"]
[Termination "BillieKimbah won by resignation"]

1. d4 {[%clk 0:03:00.9]} 1... d5 {[%clk 0:02:57.1]} 2. Nf3 {[%clk 0:03:01.4]}
2... Nf6 {[%clk 0:02:56.8]} 3. Bg5 {[%clk 0:03:02]} 3... Bf5 {[%clk 0:02:55.9]}
4. Bxf6 {[%clk 0:02:57.9]} 4... gxf6 {[%clk 0:02:51.2]} 5. e3 {[%clk 0:02:57.9]}
5... c6 {[%clk 0:02:49.2]} 6. c4 {[%clk 0:02:54.2]} 6... Nd7 {[%clk 0:02:48.8]}
7. Nc3 {[%clk 0:02:49.8]} 7... e6 {[%clk 0:02:47.9]} 8. Be2 {[%clk 0:02:39]}
8... Rg8 {[%clk 0:02:45.3]} 9. g3 {[%clk 0:02:37]} 9... Bb4 {[%clk 0:02:42.9]}
10. Rc1 {[%clk 0:02:36.1]} 10... a6 {[%clk 0:02:23.5]} 11. a3 {[%clk 0:02:35.2]}
11... Bxc3+ {[%clk 0:02:14.6]} 12. Rxc3 {[%clk 0:02:36.1]} 12... dxc4 {[%clk
0:02:14.5]} 13. Rxc4 {[%clk 0:02:31.8]} 13... Be4 {[%clk 0:02:07.2]} 14. O-O
{[%clk 0:02:30.7]} 14... Rc8 {[%clk 0:01:49.2]} 15. Nd2 {[%clk 0:02:25.6]} 15...
Bg6 {[%clk 0:01:48.6]} 16. b4 {[%clk 0:02:23]} 16... Nb6 {[%clk 0:01:41.9]} 17.
Rc5 {[%clk 0:02:22.9]} 17... Nd7 {[%clk 0:01:41.5]} 18. Rc1 {[%clk 0:02:19.3]}
18... Rh8 {[%clk 0:01:29]} 19. a4 {[%clk 0:02:11.3]} 19... h5 {[%clk 0:01:28.9]}
20. Nf3 {[%clk 0:02:11.1]} 20... Be4 {[%clk 0:01:07.7]} 21. Nh4 {[%clk
0:02:09.5]} 21... f5 {[%clk 0:01:07.5]} 22. Bf3 {[%clk 0:01:37.6]} 22... Nf6
{[%clk 0:00:50.3]} 23. Rc5 {[%clk 0:01:23.7]} 23... Rg8 {[%clk 0:00:42]} 24. Kh1
{[%clk 0:01:10.9]} 24... Nd7 {[%clk 0:00:37.1]} 25. Rc1 {[%clk 0:01:09]} 25...
Nf6 {[%clk 0:00:37.7]} 26. Ng2 {[%clk 0:01:08.1]} 26... Qd5 {[%clk 0:00:35.1]}
27. Bxe4 {[%clk 0:01:06.7]} 27... Nxe4 {[%clk 0:00:31.4]} 28. f3 {[%clk
0:01:05.7]} 28... Nf6 {[%clk 0:00:28.2]} 29. Qe2 {[%clk 0:01:03.4]} 29... Rh8
{[%clk 0:00:23.9]} 30. Rfd1 {[%clk 0:01:00.7]} 30... Qd6 {[%clk 0:00:21.8]} 31.
b5 {[%clk 0:01:00]} 31... axb5 {[%clk 0:00:20.1]} 32. axb5 {[%clk 0:01:00.9]}
32... h4 {[%clk 0:00:18.7]} 33. Nxh4 {[%clk 0:00:59.6]} 33... Nd5 {[%clk
0:00:18.6]} 34. Kg1 {[%clk 0:00:54.1]} 34... Rg8 {[%clk 0:00:17.6]} 35. Ng2
{[%clk 0:00:53.2]} 35... Ke7 {[%clk 0:00:16.9]} 36. bxc6 {[%clk 0:00:48.7]}
36... bxc6 {[%clk 0:00:13.7]} 37. e4 {[%clk 0:00:46.7]} 37... fxe4 {[%clk
0:00:13.4]} 38. fxe4 {[%clk 0:00:47.6]} 38... Nc7 {[%clk 0:00:10.1]} 39. Qf2
{[%clk 0:00:47.1]} 39... Rcd8 {[%clk 0:00:09]} 40. e5 {[%clk 0:00:41.8]} 40...
Qd5 {[%clk 0:00:09.4]} 41. Nf4 {[%clk 0:00:33.8]} 41... Qe4 {[%clk 0:00:08.5]}
42. Nh5 {[%clk 0:00:31.8]} 42... Nd5 {[%clk 0:00:07]} 43. Rf1 {[%clk 0:00:28.6]}
43... Rgf8 {[%clk 0:00:05.6]} 44. Rxc6 {[%clk 0:00:27.5]} 44... Rb8 {[%clk
0:00:03.7]} 45. Nf6 {[%clk 0:00:25.6]} 45... Nxf6 {[%clk 0:00:03.3]} 46. Qxf6+
{[%clk 0:00:21.7]} 46... Kd7 {[%clk 0:00:03.7]} 47. Rd6+ {[%clk 0:00:22.1]}
47... Ke8 {[%clk 0:00:02.2]} 48. Rxe6+ {[%clk 0:00:20.2]} 48... fxe6 {[%clk
0:00:02.5]} 49. Qxe6+ {[%clk 0:00:19.6]} 49... Kd8 {[%clk 0:00:03.1]} 50. Qd6+
{[%clk 0:00:18.7]} 50... Kc8 {[%clk 0:00:02.9]} 51. Rxf8+ {[%clk 0:00:18.2]} 1-0

[Event "Early-Titled-Tuesday-Blitz-August-29-2023"]
[Site "Chess.com"]
[Date "2023.08.29"]
[Round "6"]
[White "Alexei_Gubajdullin"]
[Black "LeoLV10"]
[Result "1-0"]
[WhiteElo "2636"]
[BlackElo "2483"]
[TimeControl "180+1"]
[EndTime "9:06:57 PDT"]
[Termination "Alexei_Gubajdullin won on time"]

1. d4 {[%clk 0:02:59.8]} 1... Nf6 {[%clk 0:03:00]} 2. Nf3 {[%clk 0:02:59.7]}
2... e6 {[%clk 0:02:58.9]} 3. Bf4 {[%clk 0:03:00]} 3... d5 {[%clk 0:02:58]} 4.
e3 {[%clk 0:03:00.2]} 4... Bd6 {[%clk 0:02:58.7]} 5. Bg3 {[%clk 0:02:59.3]} 5...
O-O {[%clk 0:02:57.4]} 6. Nbd2 {[%clk 0:02:59.7]} 6... c5 {[%clk 0:02:51.7]} 7.
c3 {[%clk 0:02:58.7]} 7... Qc7 {[%clk 0:02:51.7]} 8. dxc5 {[%clk 0:02:55.6]}
8... Qxc5 {[%clk 0:02:47.9]} 9. b4 {[%clk 0:02:55.3]} 9... Qc7 {[%clk
0:02:46.5]} 10. c4 {[%clk 0:02:55.4]} 10... Nc6 {[%clk 0:02:41.8]} 11. Bxd6
{[%clk 0:02:52.3]} 11... Qxd6 {[%clk 0:02:41.6]} 12. c5 {[%clk 0:02:52.5]} 12...
Qc7 {[%clk 0:02:40.6]} 13. b5 {[%clk 0:02:51.4]} 13... Ne5 {[%clk 0:02:39]} 14.
Nxe5 {[%clk 0:02:48.7]} 14... Qxe5 {[%clk 0:02:39.9]} 15. Rc1 {[%clk 0:02:48.6]}
15... a6 {[%clk 0:02:34]} 16. bxa6 {[%clk 0:02:45.6]} 16... bxa6 {[%clk
0:02:32.6]} 17. Be2 {[%clk 0:02:41.9]} 17... Qc7 {[%clk 0:02:27.9]} 18. c6
{[%clk 0:02:41.2]} 18... e5 {[%clk 0:02:25.5]} 19. O-O {[%clk 0:02:40.8]} 19...
Be6 {[%clk 0:02:24.5]} 20. Qa4 {[%clk 0:02:40.2]} 20... Rfc8 {[%clk 0:02:24.3]}
21. Nb3 {[%clk 0:02:39.9]} 21... Qd6 {[%clk 0:02:23.7]} 22. Bxa6 {[%clk
0:02:26.5]} 22... Rc7 {[%clk 0:02:20.3]} 23. Qb5 {[%clk 0:02:25.1]} 23... Rca7
{[%clk 0:02:17.5]} 24. Bb7 {[%clk 0:02:23.4]} 24... Rb8 {[%clk 0:02:15.8]} 25.
c7 {[%clk 0:02:17.5]} 25... Raxb7 {[%clk 0:02:11.4]} 26. c8=Q+ {[%clk
0:01:49.5]} 26... Bxc8 {[%clk 0:02:05.3]} 27. Rxc8+ {[%clk 0:01:48.4]} 27...
Rxc8 {[%clk 0:02:05.7]} 28. Qxb7 {[%clk 0:01:48.3]} 28... Rb8 {[%clk 0:02:05.9]}
29. Qa7 {[%clk 0:01:46.7]} 29... h5 {[%clk 0:02:04.3]} 30. Rc1 {[%clk
0:01:43.6]} 30... e4 {[%clk 0:02:03]} 31. h3 {[%clk 0:01:43.2]} 31... Nd7 {[%clk
0:01:52.8]} 32. Nd4 {[%clk 0:01:29.7]} 32... Ne5 {[%clk 0:01:52.1]} 33. Qc7
{[%clk 0:01:26.4]} 33... Qxc7 {[%clk 0:01:26.7]} 34. Rxc7 {[%clk 0:01:25.7]}
34... Rb1+ {[%clk 0:01:27.6]} 35. Kh2 {[%clk 0:01:25.1]} 35... Ra1 {[%clk
0:01:28.2]} 36. Rc2 {[%clk 0:01:23.7]} 36... Nd3 {[%clk 0:01:25.8]} 37. Nf5
{[%clk 0:01:16.7]} 37... Kh7 {[%clk 0:01:12]} 38. Ne7 {[%clk 0:01:12.6]} 38...
Rf1 {[%clk 0:00:41.8]} 39. Kg3 {[%clk 0:01:07.2]} 39... g5 {[%clk 0:00:38.4]}
40. h4 {[%clk 0:01:01.4]} 40... f6 {[%clk 0:00:37.6]} 41. Nxd5 {[%clk
0:00:59.7]} 41... Kg6 {[%clk 0:00:37.4]} 42. Ne7+ {[%clk 0:00:42.1]} 42... Kf7
{[%clk 0:00:34.1]} 43. Nf5 {[%clk 0:00:42]} 43... Kg6 {[%clk 0:00:33.2]} 44. Nd6
{[%clk 0:00:40.3]} 44... gxh4+ {[%clk 0:00:29.4]} 45. Kxh4 {[%clk 0:00:37.8]}
45... Nxf2 {[%clk 0:00:30]} 46. a4 {[%clk 0:00:31.2]} 46... Ng4 {[%clk
0:00:15.8]} 47. Nxe4 {[%clk 0:00:27.4]} 47... Rh1+ {[%clk 0:00:09.1]} 48. Kg3
{[%clk 0:00:26.4]} 48... Nxe3 {[%clk 0:00:07.7]} 49. Rc6 {[%clk 0:00:22.1]}
49... Rf1 {[%clk 0:00:05.9]} 50. a5 {[%clk 0:00:19.8]} 50... Nf5+ {[%clk
0:00:04.5]} 51. Kh2 {[%clk 0:00:19.6]} 51... Nd4 {[%clk 0:00:03.2]} 52. Rd6
{[%clk 0:00:18.8]} 52... Nb5 {[%clk 0:00:02.7]} 53. Rb6 {[%clk 0:00:18.4]} 1-0

[Event "Early-Titled-Tuesday-Blitz-August-29-2023"]
[Site "Chess.com"]
[Date "2023.08.29"]
[Round "6"]
[White "AlexanderL"]
[Black "Msb2"]
[Result "1/2-1/2"]
[WhiteElo "2849"]
[BlackElo "3027"]
[TimeControl "180+1"]
[EndTime "9:06:58 PDT"]
[Termination "Game drawn by repetition"]

1. Nf3 {[%clk 0:02:59.9]} 1... d5 {[%clk 0:03:00.3]} 2. e3 {[%clk 0:02:59.8]}
2... e6 {[%clk 0:03:00.9]} 3. c4 {[%clk 0:02:58.5]} 3... Nf6 {[%clk 0:03:01.5]}
4. Nc3 {[%clk 0:02:58.3]} 4... Bd6 {[%clk 0:03:02.2]} 5. b3 {[%clk 0:02:55.8]}
5... O-O {[%clk 0:03:02.6]} 6. Bb2 {[%clk 0:02:54.9]} 6... c5 {[%clk 0:03:03.4]}
7. cxd5 {[%clk 0:02:50.6]} 7... exd5 {[%clk 0:03:04.3]} 8. d4 {[%clk 0:02:50.7]}
8... Nc6 {[%clk 0:03:05]} 9. Be2 {[%clk 0:02:43]} 9... cxd4 {[%clk 0:03:05.2]}
10. Nxd4 {[%clk 0:02:43.8]} 10... Nxd4 {[%clk 0:03:05.8]} 11. Qxd4 {[%clk
0:02:43.6]} 11... Re8 {[%clk 0:03:06.6]} 12. O-O {[%clk 0:02:27.3]} 12... Be5
{[%clk 0:03:06.7]} 13. Qd2 {[%clk 0:02:18.2]} 13... d4 {[%clk 0:03:05.9]} 14.
exd4 {[%clk 0:02:16.1]} 14... Qxd4 {[%clk 0:03:06.8]} 15. Qxd4 {[%clk
0:02:15.9]} 15... Bxd4 {[%clk 0:03:07.7]} 16. Bf3 {[%clk 0:02:16.2]} 16... Rd8
{[%clk 0:03:06.7]} 17. Rad1 {[%clk 0:02:15.5]} 17... Bg4 {[%clk 0:03:06.2]} 18.
Bxg4 {[%clk 0:02:10.2]} 18... Nxg4 {[%clk 0:03:07.1]} 19. Rd2 {[%clk 0:01:54]}
19... Bxc3 {[%clk 0:02:39.7]} 20. Bxc3 {[%clk 0:01:53.2]} 20... Rxd2 {[%clk
0:02:40.4]} 21. Bxd2 {[%clk 0:01:53.4]} 21... Rd8 {[%clk 0:02:41.1]} 22. Rc1
{[%clk 0:01:45.4]} 22... f6 {[%clk 0:02:30.7]} 23. Be1 {[%clk 0:01:38.6]} 23...
Ne5 {[%clk 0:02:24]} 24. Kf1 {[%clk 0:01:37.5]} 24... Nc6 {[%clk 0:02:20]} 25.
Bc3 {[%clk 0:01:35.3]} 25... Kf7 {[%clk 0:02:20.1]} 26. Ke2 {[%clk 0:01:35.4]}
26... Ke6 {[%clk 0:02:20.4]} 27. Re1 {[%clk 0:01:34.6]} 27... h5 {[%clk
0:02:19.7]} 28. h4 {[%clk 0:01:33.6]} 28... Rd5 {[%clk 0:02:16.4]} 29. g3 {[%clk
0:01:32.7]} 29... a6 {[%clk 0:02:14]} 30. Rc1 {[%clk 0:01:28.7]} 30... Kf5
{[%clk 0:02:10.8]} 31. f3 {[%clk 0:01:25.7]} 31... g5 {[%clk 0:02:09.8]} 32. Rh1
{[%clk 0:01:22.9]} 32... Kg6 {[%clk 0:02:05.4]} 33. Ke3 {[%clk 0:01:14.2]} 33...
Rc5 {[%clk 0:02:04.1]} 34. Kd3 {[%clk 0:01:14]} 34... Rd5+ {[%clk 0:01:53.9]}
35. Ke3 {[%clk 0:01:13.9]} 35... Ne5 {[%clk 0:01:54.1]} 36. Ke4 {[%clk
0:00:55.8]} 36... Rc5 {[%clk 0:01:38.5]} 37. Bd4 {[%clk 0:00:49.2]} 37... f5+
{[%clk 0:01:38.2]} 38. Ke3 {[%clk 0:00:47]} 38... Rd5 {[%clk 0:01:39.1]} 39.
Bxe5 {[%clk 0:00:36.6]} 39... Rxe5+ {[%clk 0:01:40]} 40. Kd3 {[%clk 0:00:36.7]}
40... f4 {[%clk 0:01:29.2]} 41. gxf4 {[%clk 0:00:34.1]} 41... gxf4 {[%clk
0:01:30.1]} 42. Rc1 {[%clk 0:00:18]} 42... Re3+ {[%clk 0:01:29.6]} 43. Kd4
{[%clk 0:00:17.9]} 43... Rxf3 {[%clk 0:01:30.3]} 44. Ke4 {[%clk 0:00:18.1]}
44... Rh3 {[%clk 0:01:29.2]} 45. Rc7 {[%clk 0:00:17.1]} 45... f3 {[%clk
0:01:27.8]} 46. Ke3 {[%clk 0:00:16]} 46... Rxh4 {[%clk 0:01:14.2]} 47. Rxb7
{[%clk 0:00:15.8]} 47... Rf4 {[%clk 0:01:05.3]} 48. Kf2 {[%clk 0:00:09.1]} 48...
h4 {[%clk 0:01:05.3]} 49. Rb6+ {[%clk 0:00:09.2]} 49... Kg5 {[%clk 0:01:05.8]}
50. Rb8 {[%clk 0:00:04.7]} 50... h3 {[%clk 0:01:06.3]} 51. Rg8+ {[%clk
0:00:04.8]} 51... Kf5 {[%clk 0:00:57.2]} 52. Rh8 {[%clk 0:00:05.7]} 52... Rg4
{[%clk 0:00:38.6]} 53. Kxf3 {[%clk 0:00:03.3]} 53... Rg2 {[%clk 0:00:39.3]} 54.
Rxh3 {[%clk 0:00:02.7]} 54... Rxa2 {[%clk 0:00:39.6]} 55. Rh5+ {[%clk 0:00:03]}
55... Ke6 {[%clk 0:00:40.3]} 56. Ke4 {[%clk 0:00:02.7]} 56... Kd6 {[%clk
0:00:37.8]} 57. Rh6+ {[%clk 0:00:03.3]} 57... Kc5 {[%clk 0:00:37.9]} 58. Kd3
{[%clk 0:00:04]} 58... Kb5 {[%clk 0:00:28.3]} 59. Kc3 {[%clk 0:00:03.9]} 59...
Rg2 {[%clk 0:00:28.6]} 60. Rh5+ {[%clk 0:00:04.3]} 60... Kb6 {[%clk 0:00:29.3]}
61. Rh6+ {[%clk 0:00:04.9]} 61... Kb7 {[%clk 0:00:29.9]} 62. Rh7+ {[%clk
0:00:05.1]} 62... Kc6 {[%clk 0:00:30.5]} 63. Rh6+ {[%clk 0:00:05.1]} 63... Kb5
{[%clk 0:00:30.9]} 64. Rh5+ {[%clk 0:00:05.6]} 64... Kb6 {[%clk 0:00:31.1]} 65.
Rh6+ {[%clk 0:00:06.1]} 65... Kb5 {[%clk 0:00:31.8]} 1/2-1/2

[Event "Early-Titled-Tuesday-Blitz-August-29-2023"]
[Site "Chess.com"]
[Date "2023.08.29"]
[Round "6"]
[White "DanielNaroditsky"]
[Black "krzyzan94"]
[Result "1-0"]
[WhiteElo "3156"]
[BlackElo "2783"]
[TimeControl "180+1"]
[EndTime "9:06:59 PDT"]
[Termination "DanielNaroditsky won on time"]

1. d4 {[%clk 0:03:00.9]} 1... Nf6 {[%clk 0:02:59.5]} 2. Nc3 {[%clk 0:03:01.2]}
2... d5 {[%clk 0:02:59.1]} 3. Bf4 {[%clk 0:03:01.7]} 3... e6 {[%clk 0:02:59.1]}
4. e3 {[%clk 0:03:00.5]} 4... Bb4 {[%clk 0:02:58.6]} 5. Bd3 {[%clk 0:03:00.6]}
5... c5 {[%clk 0:02:53.8]} 6. dxc5 {[%clk 0:03:01.5]} 6... Nbd7 {[%clk
0:02:50.7]} 7. Nf3 {[%clk 0:02:50.4]} 7... Nxc5 {[%clk 0:02:45.2]} 8. O-O {[%clk
0:02:50.4]} 8... Bxc3 {[%clk 0:02:42]} 9. bxc3 {[%clk 0:02:51.3]} 9... O-O
{[%clk 0:02:41.9]} 10. Ne5 {[%clk 0:02:34.2]} 10... Nfe4 {[%clk 0:02:30.4]} 11.
Nf3 {[%clk 0:01:21.4]} 11... Nxc3 {[%clk 0:02:17.2]} 12. Qd2 {[%clk 0:01:21.9]}
12... N3e4 {[%clk 0:02:17.2]} 13. Qb4 {[%clk 0:01:22.2]} 13... a5 {[%clk
0:02:15.2]} 14. Qa3 {[%clk 0:01:19.5]} 14... Bd7 {[%clk 0:02:08.6]} 15. Rab1
{[%clk 0:01:15.1]} 15... Bc6 {[%clk 0:01:56.3]} 16. Nd4 {[%clk 0:01:07.7]} 16...
Nxd3 {[%clk 0:01:44.1]} 17. Qxd3 {[%clk 0:01:07.5]} 17... Qd7 {[%clk 0:01:35.1]}
18. f3 {[%clk 0:01:05.4]} 18... Nc5 {[%clk 0:01:29.7]} 19. Qa3 {[%clk
0:01:03.7]} 19... Na4 {[%clk 0:01:16.2]} 20. Bg3 {[%clk 0:00:45.8]} 20... b5
{[%clk 0:01:10.1]} 21. c3 {[%clk 0:00:37.9]} 21... Rfc8 {[%clk 0:01:07]} 22.
Rbc1 {[%clk 0:00:38.5]} 22... Nb6 {[%clk 0:01:04.2]} 23. Qb2 {[%clk 0:00:36.1]}
23... Nc4 {[%clk 0:01:03.8]} 24. Qe2 {[%clk 0:00:36.8]} 24... e5 {[%clk
0:01:04.2]} 25. Nc2 {[%clk 0:00:29.4]} 25... Qe7 {[%clk 0:01:02.8]} 26. Rfd1
{[%clk 0:00:28.1]} 26... b4 {[%clk 0:01:02.3]} 27. cxb4 {[%clk 0:00:19.2]} 27...
axb4 {[%clk 0:01:02.5]} 28. Ne1 {[%clk 0:00:08.5]} 28... Bb7 {[%clk 0:00:57.9]}
29. Nd3 {[%clk 0:00:08.2]} 29... Ra3 {[%clk 0:00:49.1]} 30. Be1 {[%clk
0:00:08.4]} 30... e4 {[%clk 0:00:16.6]} 31. fxe4 {[%clk 0:00:04.7]} 31... Qxe4
{[%clk 0:00:14]} 32. Bxb4 {[%clk 0:00:04.7]} 32... Ra7 {[%clk 0:00:10.7]} 33.
Nc5 {[%clk 0:00:04]} 33... Qxe3+ {[%clk 0:00:08.8]} 34. Qxe3 {[%clk 0:00:04.4]}
34... Nxe3 {[%clk 0:00:09.4]} 35. Nxb7 {[%clk 0:00:05.2]} 35... Rb8 {[%clk
0:00:07.9]} 36. Bd6 {[%clk 0:00:03.1]} 36... Re8 {[%clk 0:00:05.4]} 37. Re1
{[%clk 0:00:02.3]} 37... Rxb7 {[%clk 0:00:05.3]} 38. Rxe3 {[%clk 0:00:02.5]}
38... Rd8 {[%clk 0:00:03.7]} 39. Rb3 {[%clk 0:00:02]} 39... Rbd7 {[%clk
0:00:03.4]} 40. Be5 {[%clk 0:00:02.5]} 40... f6 {[%clk 0:00:03.2]} 41. Bd4
{[%clk 0:00:02.8]} 41... Kf7 {[%clk 0:00:04.1]} 42. a4 {[%clk 0:00:02.7]} 42...
Re8 {[%clk 0:00:03.7]} 43. a5 {[%clk 0:00:02.9]} 43... Re4 {[%clk 0:00:04.3]}
44. Rd1 {[%clk 0:00:03.1]} 44... Rd6 {[%clk 0:00:03.8]} 45. Rb6 {[%clk
0:00:03.4]} 45... Ke6 {[%clk 0:00:02.6]} 46. Rxd6+ {[%clk 0:00:03.2]} 46... Kxd6
{[%clk 0:00:02.9]} 47. a6 {[%clk 0:00:04.1]} 47... Re2 {[%clk 0:00:03.3]} 48. a7
{[%clk 0:00:04.3]} 48... Ra2 {[%clk 0:00:03.1]} 49. Ra1 {[%clk 0:00:05]} 49...
Rxa1+ {[%clk 0:00:02.9]} 50. Bxa1 {[%clk 0:00:05.9]} 50... Kc7 {[%clk
0:00:03.2]} 51. a8=Q {[%clk 0:00:06.8]} 1-0